[Event "Titled Tuesday Blitz February 22 Early 2022"]
[White "Jeet, Jain"]
[Black "Shuvalova, Polina"]
[WhiteFideId "5073022"]
[BlackFideId "24171760"]
[WhiteElo "2085"]
[BlackElo "2355"]
[Result "0-1"]
[Round "07"]
[TimeControl "180+1"]
[Date "2022.02.22"]
[WhiteClock "0:00:15"]
[BlackClock "0:00:06"]

1. e4 {[%clk 0:03:00]}  c6 {[%clk 0:02:57]} 2. d4 {[%clk 0:03:00]}  d5 {[%clk 0:02:57]} 3. e5 {[%clk 0:03:01]}  Bf5 {[%clk 0:02:57]} 4. h4 {[%clk 0:03:00]}  h5 {[%clk 0:02:56]} 5. Bd3 {[%clk 0:03:00]}  Bxd3 {[%clk 0:02:56]} 6. Qxd3 {[%clk 0:03:01]}  Qa5+ {[%clk 0:02:56]} 7. Nd2 {[%clk 0:03:00]}  Qa6 {[%clk 0:02:56]} 8. c4 {[%clk 0:02:59]}  e6 {[%clk 0:02:52]} 9. Ne2 {[%clk 0:02:58]}  Nh6 {[%clk 0:02:51]} 10. b3 {[%clk 0:02:57]}  Be7 {[%clk 0:02:41]} 11. g3 {[%clk 0:02:49]}  Nf5 {[%clk 0:02:40]} 12. O-O {[%clk 0:02:47]}  Nd7 {[%clk 0:02:36]} 13. Nf4 {[%clk 0:02:42]}  Rd8 {[%clk 0:02:28]} 14. cxd5 {[%clk 0:02:27]}  Qxd3 {[%clk 0:02:26]} 15. Nxd3 {[%clk 0:02:27]}  cxd5 {[%clk 0:02:23]} 16. Nf3 {[%clk 0:02:18]}  Nb8 {[%clk 0:02:22]} 17. Bb2 {[%clk 0:02:08]}  Nc6 {[%clk 0:02:20]} 18. a3 {[%clk 0:02:07]}  a6 {[%clk 0:02:15]} 19. b4 {[%clk 0:02:06]}  Kd7 {[%clk 0:02:13]} 20. Rfc1 {[%clk 0:02:04]}  Rc8 {[%clk 0:02:10]} 21. Bc3 {[%clk 0:01:59]}  Na7 {[%clk 0:02:08]} 22. Nc5+ {[%clk 0:01:52]}  Bxc5 {[%clk 0:02:03]} 23. bxc5 {[%clk 0:01:46]}  Nb5 {[%clk 0:01:39]} 24. a4 {[%clk 0:01:45]}  Nxc3 {[%clk 0:01:36]} 25. Rxc3 {[%clk 0:01:46]}  b6 {[%clk 0:01:35]} 26. Rb1 {[%clk 0:01:27]}  bxc5 {[%clk 0:01:30]} 27. Rb7+ {[%clk 0:01:26]}  Rc7 {[%clk 0:01:30]} 28. Rxc7+ {[%clk 0:01:25]}  Kxc7 {[%clk 0:01:31]} 29. Rxc5+ {[%clk 0:01:24]}  Kb7 {[%clk 0:01:30]} 30. Kf1 {[%clk 0:01:19]}  f6 {[%clk 0:01:12]} 31. exf6 {[%clk 0:01:18]}  gxf6 {[%clk 0:01:12]} 32. Ke2 {[%clk 0:01:18]}  Nd6 {[%clk 0:01:11]} 33. Rc1 {[%clk 0:01:14]}  Rg8 {[%clk 0:01:09]} 34. Kd3 {[%clk 0:01:12]}  Ne4 {[%clk 0:00:56]} 35. Ke3 {[%clk 0:01:13]}  Kb6 {[%clk 0:00:51]} 36. Nd2 {[%clk 0:01:02]}  Nd6 {[%clk 0:00:51]} 37. Rb1+ {[%clk 0:00:50]}  Kc6 {[%clk 0:00:39]} 38. Nb3 {[%clk 0:00:47]}  Nc4+ {[%clk 0:00:38]} 39. Kd3 {[%clk 0:00:47]}  e5 {[%clk 0:00:31]} 40. Nc5 {[%clk 0:00:44]}  a5 {[%clk 0:00:26]} 41. Nb3 {[%clk 0:00:36]}  Kd6 {[%clk 0:00:23]} 42. Nd2 {[%clk 0:00:33]}  Nxd2 {[%clk 0:00:12]} 43. Kxd2 {[%clk 0:00:34]}  Rc8 {[%clk 0:00:11]} 44. Rb5 {[%clk 0:00:29]}  Rc4 {[%clk 0:00:10]} 45. dxe5+ {[%clk 0:00:29]}  fxe5 {[%clk 0:00:11]} 46. Rxa5 {[%clk 0:00:30]}  Rb4 {[%clk 0:00:10]} 47. Ra8 {[%clk 0:00:29]}  Kc5 {[%clk 0:00:09]} 48. Kc3 {[%clk 0:00:24]}  Rc4+ {[%clk 0:00:06]} 49. Kd3 {[%clk 0:00:21]}  e4+ {[%clk 0:00:06]} 50. Kd2 {[%clk 0:00:22]}  Kd4 {[%clk 0:00:06]} 51. Ra5 {[%clk 0:00:20]}  Rb4 {[%clk 0:00:05]} 52. Ra8 {[%clk 0:00:17]}  Rb2+ {[%clk 0:00:05]} 53. Ke1 {[%clk 0:00:17]}  Kd3 {[%clk 0:00:05]} 54. Kf1 {[%clk 0:00:17]}  d4 {[%clk 0:00:05]} 55. a5 {[%clk 0:00:17]}  Ra2 {[%clk 0:00:04]} 56. a6 {[%clk 0:00:17]}  Ra1+ {[%clk 0:00:05]} 57. Kg2 {[%clk 0:00:17]}  Ra2 {[%clk 0:00:06]} 58. g4 {[%clk 0:00:16]}  e3 {[%clk 0:00:05]} 59. gxh5 {[%clk 0:00:16]}  Rxf2+ {[%clk 0:00:05]} 60. Kg3 {[%clk 0:00:16]}  Rf7 {[%clk 0:00:04]} 61. h6 {[%clk 0:00:14]}  e2 {[%clk 0:00:04]} 62. Re8 {[%clk 0:00:14]}  Kd2 {[%clk 0:00:04]} 63. Kg4 {[%clk 0:00:13]}  d3 {[%clk 0:00:05]} 64. Kg5 {[%clk 0:00:14]}  e1=Q {[%clk 0:00:05]} 65. Rxe1 {[%clk 0:00:14]}  Kxe1 {[%clk 0:00:06]} 66. Kg6 {[%clk 0:00:15]}  Ra7 {[%clk 0:00:06]} 67. h7 {[%clk 0:00:15]}  Rxa6+ {[%clk 0:00:06]} 0-1


[Site "https://www.chess.com"]

[Event "Titled Tuesday Blitz February 22 Early 2022"]
[White "Jiang, Brian"]
[Black "Zaksaite, Salomeja"]
[WhiteFideId "2627922"]
[BlackFideId "12801496"]
[WhiteElo "2394"]
[BlackElo "2002"]
[Result "1-0"]
[Round "07"]
[TimeControl "180+1"]
[Date "2022.02.22"]
[WhiteClock "0:01:49"]
[BlackClock "0:00:01"]

1. d4 {[%clk 0:03:00]}  Nf6 {[%clk 0:02:59]} 2. c4 {[%clk 0:03:01]}  g6 {[%clk 0:02:59]} 3. Nc3 {[%clk 0:03:01]}  d5 {[%clk 0:02:58]} 4. Qb3 {[%clk 0:03:01]}  dxc4 {[%clk 0:02:57]} 5. Qxc4 {[%clk 0:03:02]}  Bg7 {[%clk 0:02:58]} 6. e4 {[%clk 0:03:02]}  O-O {[%clk 0:02:53]} 7. Be2 {[%clk 0:03:02]}  Nfd7 {[%clk 0:02:50]} 8. Nf3 {[%clk 0:03:00]}  Nb6 {[%clk 0:02:49]} 9. Qd3 {[%clk 0:03:00]}  Bg4 {[%clk 0:02:49]} 10. Be3 {[%clk 0:02:59]}  Nc6 {[%clk 0:02:44]} 11. Rd1 {[%clk 0:02:58]}  Qc8 {[%clk 0:02:16]} 12. h3 {[%clk 0:02:53]}  Bxf3 {[%clk 0:02:09]} 13. Bxf3 {[%clk 0:02:54]}  Rd8 {[%clk 0:01:52]} 14. d5 {[%clk 0:02:47]}  Ne5 {[%clk 0:01:50]} 15. Qe2 {[%clk 0:02:47]}  Nxf3+ {[%clk 0:01:49]} 16. Qxf3 {[%clk 0:02:48]}  Nc4 {[%clk 0:01:45]} 17. Bc1 {[%clk 0:02:48]}  c6 {[%clk 0:01:40]} 18. O-O {[%clk 0:02:47]}  e6 {[%clk 0:00:34]} 19. Qe2 {[%clk 0:02:39]}  cxd5 {[%clk 0:00:28]} 20. exd5 {[%clk 0:02:38]}  Bxc3 {[%clk 0:00:20]} 21. bxc3 {[%clk 0:02:39]}  exd5 {[%clk 0:00:20]} 22. Bh6 {[%clk 0:02:39]}  Qe6 {[%clk 0:00:20]} 23. Qf3 {[%clk 0:02:35]}  Ne5 {[%clk 0:00:15]} 24. Qg3 {[%clk 0:02:30]}  Qf5 {[%clk 0:00:07]} 25. Rfe1 {[%clk 0:02:28]}  Nc4 {[%clk 0:00:07]} 26. Qh4 {[%clk 0:02:16]}  Rac8 {[%clk 0:00:05]} 27. Bg5 {[%clk 0:02:16]}  Re8 {[%clk 0:00:04]} 28. Bf6 {[%clk 0:02:06]}  h5 {[%clk 0:00:04]} 29. Bd4 {[%clk 0:02:06]}  Re6 {[%clk 0:00:03]} 30. Rxe6 {[%clk 0:02:05]}  Qxe6 {[%clk 0:00:02]} 31. Qg5 {[%clk 0:02:03]}  Kh7 {[%clk 0:00:02]} 32. Rd3 {[%clk 0:01:59]}  Re8 {[%clk 0:00:02]} 33. Rf3 {[%clk 0:01:59]}  Nd6 {[%clk 0:00:01]} 34. Rf6 {[%clk 0:01:53]}  Nf5 {[%clk 0:00:02]} 35. Rxe6 {[%clk 0:01:53]}  Rxe6 {[%clk 0:00:01]} 36. g4 {[%clk 0:01:49]}  hxg4 {[%clk 0:00:01]} 37. hxg4 {[%clk 0:01:49]} 1-0


[Site "https://www.chess.com"]

[Event "Titled Tuesday Blitz February 22 Early 2022"]
[White "Johnson, Ben"]
[Black "Heinemann, Josefine"]
[WhiteFideId "2010917"]
[BlackFideId "12900460"]
[WhiteElo "2217"]
[BlackElo "2300"]
[Result "0-1"]
[Round "07"]
[TimeControl "180+1"]
[Date "2022.02.22"]
[WhiteClock "0:00:07"]
[BlackClock "0:00:42"]

1. Nf3 {[%clk 0:03:00]}  d5 {[%clk 0:02:55]} 2. e3 {[%clk 0:03:00]}  Nf6 {[%clk 0:02:54]} 3. c4 {[%clk 0:03:00]}  c5 {[%clk 0:02:54]} 4. cxd5 {[%clk 0:02:58]}  Nxd5 {[%clk 0:02:53]} 5. b3 {[%clk 0:02:55]}  Nc6 {[%clk 0:02:53]} 6. Bb5 {[%clk 0:02:55]}  Bd7 {[%clk 0:02:50]} 7. Bb2 {[%clk 0:02:53]}  e6 {[%clk 0:02:50]} 8. O-O {[%clk 0:02:52]}  Qc7 {[%clk 0:02:45]} 9. Nc3 {[%clk 0:02:44]}  Nxc3 {[%clk 0:02:42]} 10. Bxc3 {[%clk 0:02:44]}  a6 {[%clk 0:02:43]} 11. Bxc6 {[%clk 0:02:35]}  Bxc6 {[%clk 0:02:42]} 12. Rc1 {[%clk 0:02:20]}  Bd6 {[%clk 0:02:37]} 13. h3 {[%clk 0:01:58]}  O-O {[%clk 0:02:30]} 14. d3 {[%clk 0:01:35]}  Rad8 {[%clk 0:02:28]} 15. Qe2 {[%clk 0:01:35]}  b5 {[%clk 0:02:27]} 16. e4 {[%clk 0:01:32]}  b4 {[%clk 0:02:12]} 17. Bb2 {[%clk 0:01:17]}  Bb5 {[%clk 0:02:12]} 18. Rfd1 {[%clk 0:01:07]}  Rd7 {[%clk 0:01:59]} 19. e5 {[%clk 0:00:59]}  Be7 {[%clk 0:01:58]} 20. Qe3 {[%clk 0:00:50]}  Rfd8 {[%clk 0:01:54]} 21. d4 {[%clk 0:00:38]}  Qb7 {[%clk 0:01:40]} 22. Re1 {[%clk 0:00:31]}  cxd4 {[%clk 0:01:35]} 23. Bxd4 {[%clk 0:00:26]}  Bc6 {[%clk 0:01:29]} 24. Bc5 {[%clk 0:00:24]}  Bxc5 {[%clk 0:00:57]} 25. Rxc5 {[%clk 0:00:23]}  Rd3 {[%clk 0:00:54]} 26. Qc1 {[%clk 0:00:19]}  Bxf3 {[%clk 0:00:53]} 27. gxf3 {[%clk 0:00:18]}  Qxf3 {[%clk 0:00:53]} 28. Rc8 {[%clk 0:00:13]}  h6 {[%clk 0:00:48]} 29. Rxd8+ {[%clk 0:00:12]}  Rxd8 {[%clk 0:00:49]} 30. Qe3 {[%clk 0:00:11]}  Qf5 {[%clk 0:00:46]} 31. Kg2 {[%clk 0:00:10]}  Rd5 {[%clk 0:00:44]} 32. f4 {[%clk 0:00:09]}  Rd3 {[%clk 0:00:43]} 33. Qf2 {[%clk 0:00:07]}  Qxh3+ {[%clk 0:00:42]} 0-1


[Site "https://www.chess.com"]

[Event "Titled Tuesday Blitz February 22 Early 2022"]
[White "Jumabayev, Rinat"]
[Black "Pinheiro, Iung Alicio de O."]
[WhiteFideId "13702661"]
[BlackFideId "2104350"]
[WhiteElo "2561"]
[BlackElo "2595"]
[Result "1-0"]
[Round "07"]
[TimeControl "180+1"]
[Date "2022.02.22"]
[WhiteClock "0:00:06"]
[BlackClock "0:00:10"]

1. e4 {[%clk 0:03:00]}  c5 {[%clk 0:02:59]} 2. Nf3 {[%clk 0:03:01]}  Nc6 {[%clk 0:02:59]} 3. Bb5 {[%clk 0:03:01]}  e6 {[%clk 0:02:59]} 4. O-O {[%clk 0:02:57]}  Nge7 {[%clk 0:02:59]} 5. d4 {[%clk 0:02:56]}  cxd4 {[%clk 0:02:55]} 6. Nxd4 {[%clk 0:02:57]}  a6 {[%clk 0:02:55]} 7. Be2 {[%clk 0:02:54]}  Nxd4 {[%clk 0:02:50]} 8. Qxd4 {[%clk 0:02:54]}  Nc6 {[%clk 0:02:51]} 9. Qc3 {[%clk 0:02:54]}  Qa5 {[%clk 0:02:44]} 10. Qg3 {[%clk 0:02:50]}  Qe5 {[%clk 0:02:31]} 11. Nc3 {[%clk 0:02:49]}  Qxg3 {[%clk 0:02:30]} 12. hxg3 {[%clk 0:02:50]}  b5 {[%clk 0:02:27]} 13. Be3 {[%clk 0:02:48]}  Bb7 {[%clk 0:02:26]} 14. Rfd1 {[%clk 0:02:32]}  Be7 {[%clk 0:02:12]} 15. f3 {[%clk 0:02:26]}  Rc8 {[%clk 0:02:11]} 16. a4 {[%clk 0:02:25]}  b4 {[%clk 0:02:11]} 17. Nb1 {[%clk 0:02:25]}  Ne5 {[%clk 0:02:04]} 18. c3 {[%clk 0:02:25]}  Nc4 {[%clk 0:01:41]} 19. Bxc4 {[%clk 0:02:21]}  Rxc4 {[%clk 0:01:42]} 20. Nd2 {[%clk 0:02:18]}  Rc8 {[%clk 0:01:39]} 21. cxb4 {[%clk 0:01:17]}  Bxb4 {[%clk 0:01:36]} 22. Rac1 {[%clk 0:00:59]}  Ke7 {[%clk 0:01:29]} 23. Nc4 {[%clk 0:00:35]}  d5 {[%clk 0:01:26]} 24. Nb6 {[%clk 0:00:32]}  Rxc1 {[%clk 0:01:12]} 25. Rxc1 {[%clk 0:00:33]}  Bd6 {[%clk 0:01:03]} 26. exd5 {[%clk 0:00:27]}  exd5 {[%clk 0:00:51]} 27. Kf2 {[%clk 0:00:22]}  f6 {[%clk 0:00:50]} 28. b4 {[%clk 0:00:20]}  Rb8 {[%clk 0:00:45]} 29. b5 {[%clk 0:00:19]}  axb5 {[%clk 0:00:44]} 30. axb5 {[%clk 0:00:20]}  Kd8 {[%clk 0:00:41]} 31. Bd4 {[%clk 0:00:18]}  Bc7 {[%clk 0:00:36]} 32. Na4 {[%clk 0:00:18]}  Bc8 {[%clk 0:00:34]} 33. b6 {[%clk 0:00:18]}  Bd6 {[%clk 0:00:35]} 34. Nc3 {[%clk 0:00:17]}  Bb7 {[%clk 0:00:34]} 35. Nb5 {[%clk 0:00:14]}  Kd7 {[%clk 0:00:30]} 36. Nxd6 {[%clk 0:00:13]}  Kxd6 {[%clk 0:00:31]} 37. Rc7 {[%clk 0:00:14]}  g6 {[%clk 0:00:22]} 38. Rxh7 {[%clk 0:00:13]}  Bc6 {[%clk 0:00:19]} 39. Rf7 {[%clk 0:00:11]}  Ra8 {[%clk 0:00:15]} 40. Rxf6+ {[%clk 0:00:10]}  Kd7 {[%clk 0:00:16]} 41. Rxg6 {[%clk 0:00:11]}  Ra2+ {[%clk 0:00:16]} 42. Ke3 {[%clk 0:00:10]}  Bb7 {[%clk 0:00:13]} 43. Rg7+ {[%clk 0:00:09]}  Kc8 {[%clk 0:00:13]} 44. g4 {[%clk 0:00:07]}  Rxg2 {[%clk 0:00:12]} 45. Be5 {[%clk 0:00:07]}  d4+ {[%clk 0:00:12]} 46. Bxd4 {[%clk 0:00:06]}  Rg3 {[%clk 0:00:11]} 47. Rc7+ {[%clk 0:00:06]}  Kb8 {[%clk 0:00:11]} 48. Rf7 {[%clk 0:00:06]}  Kc8 {[%clk 0:00:11]} 49. Be5 {[%clk 0:00:06]}  Rg1 {[%clk 0:00:10]} 50. Rc7+ {[%clk 0:00:06]} 1-0


[Site "https://www.chess.com"]

[Event "Titled Tuesday Blitz February 22 Early 2022"]
[White "Kadam, Om Manish"]
[Black "Yeletsky, Ivan"]
[WhiteFideId "45076294"]
[BlackFideId "24180327"]
[WhiteElo "2617"]
[BlackElo "2785"]
[Result "0-1"]
[Round "07"]
[TimeControl "180+1"]
[Date "2022.02.22"]
[WhiteClock "0:00:26"]
[BlackClock "0:00:24"]

1. e4 {[%clk 0:03:00]}  Nc6 {[%clk 0:02:58]} 2. d4 {[%clk 0:03:00]}  e5 {[%clk 0:02:56]} 3. d5 {[%clk 0:02:59]}  Nce7 {[%clk 0:02:56]} 4. Nf3 {[%clk 0:02:58]}  Ng6 {[%clk 0:02:56]} 5. Be3 {[%clk 0:02:57]}  Nf6 {[%clk 0:02:55]} 6. Nc3 {[%clk 0:02:57]}  Bb4 {[%clk 0:02:54]} 7. Bd3 {[%clk 0:02:56]}  Bxc3+ {[%clk 0:02:54]} 8. bxc3 {[%clk 0:02:57]}  d6 {[%clk 0:02:55]} 9. h3 {[%clk 0:02:56]}  O-O {[%clk 0:02:52]} 10. O-O {[%clk 0:02:56]}  b6 {[%clk 0:02:43]} 11. Nd2 {[%clk 0:02:52]}  Nd7 {[%clk 0:02:37]} 12. Kh2 {[%clk 0:02:37]}  Qe7 {[%clk 0:02:29]} 13. Qe2 {[%clk 0:02:29]}  Nf4 {[%clk 0:02:22]} 14. Qf3 {[%clk 0:02:24]}  Qf6 {[%clk 0:01:43]} 15. g3 {[%clk 0:02:10]}  Nxd3 {[%clk 0:01:36]} 16. cxd3 {[%clk 0:02:11]}  Qg6 {[%clk 0:01:32]} 17. Qg4 {[%clk 0:01:58]}  f6 {[%clk 0:01:19]} 18. Qxg6 {[%clk 0:01:55]}  hxg6 {[%clk 0:01:16]} 19. f4 {[%clk 0:01:56]}  Kf7 {[%clk 0:00:47]} 20. d4 {[%clk 0:01:46]}  Ke7 {[%clk 0:00:47]} 21. fxe5 {[%clk 0:01:41]}  dxe5 {[%clk 0:00:48]} 22. Nf3 {[%clk 0:01:37]}  Ba6 {[%clk 0:00:48]} 23. Rf2 {[%clk 0:01:28]}  Bd3 {[%clk 0:00:48]} 24. Nd2 {[%clk 0:01:14]}  Rac8 {[%clk 0:00:47]} 25. dxe5 {[%clk 0:01:06]}  Nxe5 {[%clk 0:00:47]} 26. Bd4 {[%clk 0:01:06]}  Ba6 {[%clk 0:00:46]} 27. c4 {[%clk 0:00:58]}  Nxc4 {[%clk 0:00:43]} 28. Nxc4 {[%clk 0:00:56]}  Bxc4 {[%clk 0:00:44]} 29. Rd2 {[%clk 0:00:56]}  c6 {[%clk 0:00:42]} 30. dxc6 {[%clk 0:00:39]}  Rxc6 {[%clk 0:00:42]} 31. e5 {[%clk 0:00:39]}  Be6 {[%clk 0:00:39]} 32. Re1 {[%clk 0:00:37]}  Rfc8 {[%clk 0:00:32]} 33. exf6+ {[%clk 0:00:37]}  gxf6 {[%clk 0:00:32]} 34. Rf2 {[%clk 0:00:37]}  f5 {[%clk 0:00:30]} 35. Rfe2 {[%clk 0:00:34]}  Rc2 {[%clk 0:00:30]} 36. a3 {[%clk 0:00:34]}  Kf7 {[%clk 0:00:29]} 37. h4 {[%clk 0:00:33]}  R8c4 {[%clk 0:00:28]} 38. Bb2 {[%clk 0:00:27]}  a5 {[%clk 0:00:26]} 39. Kg1 {[%clk 0:00:26]}  Rxe2 {[%clk 0:00:25]} 40. Rxe2 {[%clk 0:00:27]}  b5 {[%clk 0:00:26]} 41. Kf2 {[%clk 0:00:27]}  b4 {[%clk 0:00:26]} 42. axb4 {[%clk 0:00:27]}  Rxb4 {[%clk 0:00:27]} 43. Rc2 {[%clk 0:00:24]}  Bd5 {[%clk 0:00:21]} 44. Rd2 {[%clk 0:00:20]}  Ke6 {[%clk 0:00:21]} 45. Re2+ {[%clk 0:00:21]}  Kd7 {[%clk 0:00:21]} 46. Rd2 {[%clk 0:00:21]}  Kc6 {[%clk 0:00:21]} 47. Rc2+ {[%clk 0:00:22]}  Kb5 {[%clk 0:00:18]} 48. Ba3 {[%clk 0:00:22]}  Rc4 {[%clk 0:00:13]} 49. Rxc4 {[%clk 0:00:22]}  Kxc4 {[%clk 0:00:14]} 50. Ke3 {[%clk 0:00:21]}  a4 {[%clk 0:00:12]} 51. Kf4 {[%clk 0:00:20]}  Kb3 {[%clk 0:00:12]} 52. Be7 {[%clk 0:00:19]}  a3 {[%clk 0:00:11]} 53. h5 {[%clk 0:00:19]}  gxh5 {[%clk 0:00:11]} 54. Kxf5 {[%clk 0:00:19]}  Bf3 {[%clk 0:00:11]} 55. Kf4 {[%clk 0:00:19]}  Bg4 {[%clk 0:00:11]} 56. Bf6 {[%clk 0:00:16]}  Kc2 {[%clk 0:00:10]} 57. Ke3 {[%clk 0:00:15]}  a2 {[%clk 0:00:11]} 58. Kf2 {[%clk 0:00:15]}  Kb1 {[%clk 0:00:12]} 59. Ke3 {[%clk 0:00:16]}  a1=Q {[%clk 0:00:13]} 60. Bxa1 {[%clk 0:00:17]}  Kxa1 {[%clk 0:00:14]} 61. Kf2 {[%clk 0:00:17]}  Kb2 {[%clk 0:00:15]} 62. Kg1 {[%clk 0:00:18]}  Kb3 {[%clk 0:00:16]} 63. Kh2 {[%clk 0:00:19]}  Kc4 {[%clk 0:00:17]} 64. Kg2 {[%clk 0:00:20]}  Kd5 {[%clk 0:00:18]} 65. Kh2 {[%clk 0:00:21]}  Ke5 {[%clk 0:00:18]} 66. Kg2 {[%clk 0:00:22]}  Ke4 {[%clk 0:00:19]} 67. Kh2 {[%clk 0:00:22]}  Kf3 {[%clk 0:00:20]} 68. Kg1 {[%clk 0:00:22]}  Kxg3 {[%clk 0:00:20]} 69. Kh1 {[%clk 0:00:23]}  h4 {[%clk 0:00:21]} 70. Kg1 {[%clk 0:00:23]}  h3 {[%clk 0:00:22]} 71. Kh1 {[%clk 0:00:24]}  Bf3+ {[%clk 0:00:22]} 72. Kg1 {[%clk 0:00:25]}  h2+ {[%clk 0:00:23]} 73. Kf1 {[%clk 0:00:26]}  h1=Q# {[%clk 0:00:24]} 0-1


[Site "https://www.chess.com"]

[Event "Titled Tuesday Blitz February 22 Early 2022"]
[White "Kamsky, Gata"]
[Black "Barrientos, Sergio E"]
[WhiteFideId "2000024"]
[BlackFideId "4401824"]
[WhiteElo "2645"]
[BlackElo "2441"]
[Result "1-0"]
[Round "07"]
[TimeControl "180+1"]
[Date "2022.02.22"]
[WhiteClock "0:00:14"]
[BlackClock "0:00:21"]

1. d4 {[%clk 0:03:00]}  Nf6 {[%clk 0:02:59]} 2. Nf3 {[%clk 0:02:58]}  e6 {[%clk 0:02:59]} 3. Bf4 {[%clk 0:02:57]}  c5 {[%clk 0:02:58]} 4. e3 {[%clk 0:02:56]}  cxd4 {[%clk 0:02:58]} 5. exd4 {[%clk 0:02:56]}  b6 {[%clk 0:02:59]} 6. a4 {[%clk 0:02:52]}  a6 {[%clk 0:02:58]} 7. Bd3 {[%clk 0:02:51]}  Bb7 {[%clk 0:02:58]} 8. O-O {[%clk 0:02:49]}  Be7 {[%clk 0:02:58]} 9. h3 {[%clk 0:02:49]}  d6 {[%clk 0:02:59]} 10. Nbd2 {[%clk 0:02:40]}  O-O {[%clk 0:02:59]} 11. Re1 {[%clk 0:02:40]}  Nbd7 {[%clk 0:02:58]} 12. Bh2 {[%clk 0:02:36]}  Qc7 {[%clk 0:02:58]} 13. c4 {[%clk 0:02:35]}  Rfe8 {[%clk 0:02:57]} 14. a5 {[%clk 0:02:34]}  bxa5 {[%clk 0:02:53]} 15. Qa4 {[%clk 0:02:33]}  Bc6 {[%clk 0:02:49]} 16. Qxa5 {[%clk 0:02:33]}  Qb7 {[%clk 0:02:49]} 17. b4 {[%clk 0:02:27]}  h6 {[%clk 0:02:36]} 18. c5 {[%clk 0:02:03]}  Nd5 {[%clk 0:02:24]} 19. cxd6 {[%clk 0:01:29]}  Bd8 {[%clk 0:02:13]} 20. Qa3 {[%clk 0:01:28]}  Qxb4 {[%clk 0:02:09]} 21. Reb1 {[%clk 0:01:14]}  Qxa3 {[%clk 0:01:52]} 22. Rxa3 {[%clk 0:01:13]}  f6 {[%clk 0:01:21]} 23. Rxa6 {[%clk 0:01:10]}  Bb6 {[%clk 0:01:21]} 24. Rxa8 {[%clk 0:01:07]}  Rxa8 {[%clk 0:01:21]} 25. Bg3 {[%clk 0:01:05]}  Ra3 {[%clk 0:01:12]} 26. Bg6 {[%clk 0:00:50]}  Nc3 {[%clk 0:01:01]} 27. Re1 {[%clk 0:00:46]}  Bd5 {[%clk 0:00:59]} 28. Be8 {[%clk 0:00:43]}  Ra7 {[%clk 0:00:54]} 29. Re3 {[%clk 0:00:39]}  Nb5 {[%clk 0:00:48]} 30. Re1 {[%clk 0:00:29]}  Kf8 {[%clk 0:00:48]} 31. Bxd7 {[%clk 0:00:28]}  Rxd7 {[%clk 0:00:47]} 32. Rb1 {[%clk 0:00:28]}  Bc6 {[%clk 0:00:45]} 33. Nc4 {[%clk 0:00:28]}  Bd8 {[%clk 0:00:33]} 34. Ncd2 {[%clk 0:00:25]}  Rb7 {[%clk 0:00:29]} 35. Rc1 {[%clk 0:00:24]}  Bd5 {[%clk 0:00:26]} 36. Rc8 {[%clk 0:00:22]}  Ke8 {[%clk 0:00:27]} 37. Rc5 {[%clk 0:00:18]}  Kd7 {[%clk 0:00:23]} 38. Nc4 {[%clk 0:00:18]}  Bxc4 {[%clk 0:00:22]} 39. Rxc4 {[%clk 0:00:18]}  Nxd6 {[%clk 0:00:22]} 40. Bxd6 {[%clk 0:00:17]}  Kxd6 {[%clk 0:00:23]} 41. Rc8 {[%clk 0:00:17]}  Kd7 {[%clk 0:00:23]} 42. Ra8 {[%clk 0:00:16]}  Bc7 {[%clk 0:00:24]} 43. g4 {[%clk 0:00:16]}  Rb8 {[%clk 0:00:23]} 44. Ra7 {[%clk 0:00:15]}  Kc6 {[%clk 0:00:23]} 45. Kg2 {[%clk 0:00:15]}  Rb2 {[%clk 0:00:22]} 46. Ra6+ {[%clk 0:00:15]}  Bb6 {[%clk 0:00:22]} 47. Ra8 {[%clk 0:00:15]}  e5 {[%clk 0:00:19]} 48. dxe5 {[%clk 0:00:15]}  Rxf2+ {[%clk 0:00:19]} 49. Kg3 {[%clk 0:00:15]}  Re2 {[%clk 0:00:19]} 50. exf6 {[%clk 0:00:14]}  Bc7+ {[%clk 0:00:19]} 51. Kh4 {[%clk 0:00:14]}  gxf6 {[%clk 0:00:19]} 52. Nd4+ {[%clk 0:00:14]}  Kb7 {[%clk 0:00:18]} 53. Nxe2 {[%clk 0:00:15]}  Kxa8 {[%clk 0:00:18]} 54. Kh5 {[%clk 0:00:16]}  Kb7 {[%clk 0:00:19]} 55. Kxh6 {[%clk 0:00:15]}  Kc6 {[%clk 0:00:20]} 56. Kg6 {[%clk 0:00:15]}  Kd5 {[%clk 0:00:21]} 57. h4 {[%clk 0:00:15]}  Ke4 {[%clk 0:00:21]} 58. h5 {[%clk 0:00:15]}  Kf3 {[%clk 0:00:22]} 59. h6 {[%clk 0:00:15]}  f5 {[%clk 0:00:21]} 60. Kxf5 {[%clk 0:00:15]}  Kxe2 {[%clk 0:00:20]} 61. h7 {[%clk 0:00:15]}  Be5 {[%clk 0:00:21]} 62. Kxe5 {[%clk 0:00:14]} 1-0


[Site "https://www.chess.com"]